Cogmind - Beta 12 @@@ ROGUE MODE // 2023.11.25 @ 09:08:36 Player: Dosh Result: Destroyed by G-50 Soldier with Heavy Laser Performance ------------- Evolutions (3) 1500 Regions Visited (6) 1200 Robots Destroyed (141) 705 Value Destroyed (4645) 4645 Prototype IDs (28) 560 Alien Tech Used (0) 0 Bonus (811) 811 TOTAL SCORE: 9421 Bonus ------- High Alert Combat Kills 396 Follower Combat Kills 115 Aligned with FarCom 300 Cogmind --------- Core Integrity 0/700 Matter 33/300 Energy 150/150 System Corruption 8% Temperature Cool (18) Movement Core (500) Ox9 Location -7/Factory Parts ------- > --- POWER (1) -------- Micro Nuclear Core (fused) > --- PROPULSION (3) --- (None) > --- UTILITY (7) ------ Large Storage Unit Advanced Visual Processing Unit Improved Terrain Scan Processor Improved Target Analyzer Core Analyzer > --- WEAPON (2) ------- Flak Gun > --- INVENTORY (15) --- Micro Fission Core Armored Treads Improved Heat Sink Large Storage Unit High-capacity Storage Unit Improved Utility Shielding Hacking Suite Heavy Particle Cannon Grenade Launcher Heavy Missile Launcher Mining Claw Peak State ------------ > --- POWER ------------ Micro Fission Core > --- PROPULSION ------- Armored Treads Armored Treads Armored Treads > --- UTILITY ---------- Large Storage Unit Advanced Visual Processing Unit Improved Terrain Scan Processor Improved Target Analyzer Core Analyzer Heavy Armor Plating > --- WEAPON ----------- Minigun Gauss Rifle > --- INVENTORY -------- Improved Deuterium Engine Armored Treads Armored Treads Armored Treads Armored Treads Improved Heat Sink High-capacity Storage Unit Hardened Medium Armor Plating Hacking Suite Heavy Particle Cannon Flak Gun Assault Cannon Proton Missile Launcher Grenade Launcher Mining Claw [Rating: 48] Favorites ----------- Power Ion Engine Engine Ion Engine Power Core Micro Nuclear Core Propulsion Armored Treads Treads Armored Treads Wheel Compact Wheel Utility Large Storage Unit Device Improved Terrain Scanner Storage Large Storage Unit Processor Advanced Visual Processing Unit Protection Hardened Heavy Armor Plating Weapon Assault Rifle Energy Cannon Heavy Particle Cannon Ballistic Gun Assault Rifle Ballistic Cannon Heavy Assault Cannon Launcher Proton Missile Launcher Build | -11 -10 -10 -10 -9 -8 -7 ------- Run | Jun Mat Min Exi Min Mat Fac Slots Evolved 6 | . . . . . 4 2 Power . | . . . . . . . Propulsion 1 | . . . . . . 1 Utility 5 | . . . . . 4 1 Weapon . | . . . . . . . Parts Attached 109 | 6 14 1 1 1 42 44 Power 17 | 1 1 1 . . 8 6 Engine 12 | 1 1 1 . . 7 2 Core 5 | . . . . . 1 4 Reactor . | . . . . . . . Propulsion 31 | 2 6 . . . 10 13 Treads 29 | 2 4 . . . 10 13 Leg . | . . . . . . . Wheel 2 | . 2 . . . . . Hover . | . . . . . . . Flight . | . . . . . . . Utility 37 | 1 6 . 1 . 13 16 Device 5 | . . . . . 2 3 Storage 6 | 1 4 . . . . 1 Processor 13 | . 1 . 1 . 7 4 Hackware . | . . . . . . . Protection 13 | . 1 . . . 4 8 Artifact . | . . . . . . . Weapon 24 | 2 1 . . 1 11 9 Energy Gun . | . . . . . . . Energy Cannon 2 | . . . . . 1 1 Ballistic Gun 12 | 2 1 . . . 4 5 Ballistic Cannon 4 | . . . . . 2 2 Launcher 6 | . . . . 1 4 1 Special Weapon . | . . . . . . . Impact Weapon . | . . . . . . . Slashing Weapon . | . . . . . . . Piercing Weapon . | . . . . . . . Special Melee Weapon . | . . . . . . . Unidentified Prototypes 1 | . . . . . 1 . Parts Lost 39 | . 1 1 . . 16 21 Power 6 | . . 1 . . 2 3 Propulsion 11 | . 1 . . . 3 7 Utility 13 | . . . . . 7 6 Weapon 9 | . . . . . 4 5 Highest Loss Streak 5 | . 1 1 . . 4 5 To Critical Strikes . | . . . . . . . Average Slot Usage (%) 90 | . 97 99 100 99 88 87 Engine 6 | . 14 13 14 14 7 1 Core 2 | . . . . . . 5 Treads 22 | . 24 28 28 28 17 21 Device 2 | . . . . . 6 2 Storage 10 | . 17 14 14 14 9 7 Processor 23 | . 7 14 14 14 24 30 Protection 4 | . . . . . 8 5 Ballistic Gun 12 | . 28 28 28 24 7 4 Ballistic Cannon 3 | . . . . . 4 4 Naked Turns . | . . . . . . . Heaviest Build 58 | 12 49 29 29 31 57 58 Greatest Support 62 | 40 40 40 40 40 42 62 Greatest Overweight (x) 10 | 3 9 . . . 1 10 Average Overweight (x) . | . . . . . . . Largest Inventory Capacity 25 | 8 25 15 15 15 15 15 Average Capacity 14 | 7 14 15 15 15 15 15 Most Carried 15 | 3 15 15 13 14 15 15 Average Carried 12 | 1 10 13 13 13 13 13 Final Capacity 15 | 8 15 15 15 15 15 15 Final Carried 15 | 3 15 13 13 13 15 11 Class Distribution -------------------- 68% | Mutant 20% | Scavenger-Mutant 8% | Scavenger-Skirmisher Dominant Class ---------------- Mutant | -10/Materials Mutant | -10/Mines Mutant | -10/Exiles Mutant | -9/Mines Scavenger-Skirmisher | -8/Materials Mutant | -7/Factory Resources | -11 -10 -10 -10 -9 -8 -7 ----------- Run | Jun Mat Min Exi Min Mat Fac Matter Collected 4191 | 201 746 49 . 14 1170 2011 Remotely . | . . . . . . . Salvage Created 4750 | . 994 94 . . 1426 2236 Parts 293 | . 54 10 . . 104 125 Haulers Intercepted 4 | . 2 . . . 1 1 Recyclers Shooed 4 | . 4 . . . . . Parts Field Recycled . | . . . . . . . Retrieved Matter . | . . . . . . . Parts Self-Destructed . | . . . . . . . Prevented . | . . . . . . . Kills | -11 -10 -10 -10 -9 -8 -7 ------- Run | Jun Mat Min Exi Min Mat Fac Combat Hostiles Destroyed 93 | . 11 3 . . 31 48 Melee 4 | . . . . . 1 3 Guns 43 | . 11 3 . . 10 19 Cannons 37 | . . . . . 11 26 AOE 9 | . . . . . 9 . Classes Destroyed 16 | . 7 . . . 7 2 Worker 9 | . 3 . . . 4 2 Builder 4 | . . . . . 3 1 Tunneler 10 | . 2 1 . . 3 4 Hauler 4 | . 2 . . . 1 1 Recycler 11 | . 4 . . . 1 6 Operator 2 | . . . . . 1 1 Watcher 8 | . 3 . . . 2 3 Swarmer 17 | . 3 3 . . 4 7 Grunt 39 | . 8 . . . 16 15 Brawler 1 | . . . . . 1 . Duelist 3 | . . . . . 1 2 Sentry 11 | . . . . . 6 5 Specialist 4 | . . . . . . 4 Hunter 6 | . . . . . 2 4 Programmer 10 | . . . . . . 10 Heavy 2 | . . . . . 1 1 Best Kill Streak 10 | . 5 3 . . 10 7 Combat Bots Only 4 | . 3 3 . . 4 4 Max Kills in Single Turn 2 | . 1 1 . . 2 1 Gunslinging . | . . . . . . . Exploded 1 | . . . . . 1 . Melee 1 | . . . . . 1 1 Uniques/NPCs Destroyed . | . . . . . . . Combat | -11 -10 -10 -10 -9 -8 -7 -------- Run | Jun Mat Min Exi Min Mat Fac Damage Taken 10017 | . 712 54 . . 3037 6214 Core 1407 | . 161 17 . . 517 712 Absorbed by Shields . | . . . . . . . Redirected to Shielding 412 | . . . . . 152 260 Regen/Repaired (Parts) 630 | . 175 . . . . 455 Core Remaining (%) 44 | 100 . . . 28 6 . Volleys Fired 424 | . 94 8 . . 91 231 Largest 2 | . 2 2 . . 2 2 Hottest 103 | . 40 40 . . 103 83 Shots Fired 680 | . 188 16 . . 138 338 Gun 452 | . 188 16 . . 67 181 Cannon 199 | . . . . . 45 154 Launcher 29 | . . . . . 26 3 Special . | . . . . . . . Kinetic 646 | . 188 16 . . 107 335 Thermal 5 | . . . . . 5 . Explosive 26 | . . . . . 26 . Electromagnetic 3 | . . . . . . 3 Robot Hit Streak 22 | . 13 10 . . 13 22 Robot Miss Streak 9 | . 3 4 . . 9 6 Penetration Max 1 | . . . . . 1 1 Secondary Targets 5 | . 3 1 . . . 1 Max Gunslinging Chain 1 | . 1 1 . . . 1 Shots Hit Robots 466 | . 113 10 . . 86 257 Core Hits 255 | . 41 5 . . 90 119 Critical Kills 3 | . . . . . 1 2 Critical Parts Destroyed 6 | . 1 . . . . 5 Critical Strikes 22 | . 1 . . . 4 17 Destroy 9 | . 1 . . . 1 7 Blast 13 | . . . . . 3 10 Melee Attacks . | . . . . . . . Impact . | . . . . . . . Slashing . | . . . . . . . Piercing . | . . . . . . . Sneak Attacks . | . . . . . . . Combat Hostiles . | . . . . . . . Follow-up Attacks . | . . . . . . . Damage Inflicted 12320 | . 1557 133 . . 3917 6713 Guns 5191 | . 1547 133 . . 865 2646 Cannons 4905 | . . . . . 1109 3796 Explosions 2138 | . . . . . 1899 239 Melee . | . . . . . . . Ramming 86 | . 10 . . . 44 32 Kinetic 9996 | . 1547 133 . . 1874 6442 Thermal 100 | . . . . . 100 . Explosive 1834 | . . . . . 1656 178 Electromagnetic 304 | . . . . . 243 61 Impact . | . . . . . . . Slashing . | . . . . . . . Piercing . | . . . . . . . Highest Corruption 8 | . . . . . 6 8 Average Corruption 5 | . . . . . 5 6 Corruption Purged . | . . . . . . . Corruption Blocked . | . . . . . . . Effects 149 | . . . . . 52 97 Message Errors 32 | . . . . . 12 20 Matter Fused 38 | . . . . . 9 29 Heat Flow Errors 15 | . . . . . 5 10 Energy Discharges 17 | . . . . . 6 11 Parts Rejected 3 | . . . . . 2 1 Parts Fused 2 | . . . . . 1 1 Data Loss (minor) 26 | . . . . . 9 17 Data Loss (major) 5 | . . . . . 1 4 Misfires 7 | . . . . . 3 4 Alerts 4 | . . . . . 4 . Overload Shots . | . . . . . . . Overflow Damage 437 | . . . . . 62 375 Projectiles 385 | . . . . . 30 355 Explosions 52 | . . . . . 32 20 Melee . | . . . . . . . Knockbacks 54 | . . . . . 13 41 Impact 2 | . . . . . 1 1 Kinetic 48 | . . . . . 10 38 Secondary 4 | . . . . . 2 2 Self-Inflicted Damage 544 | . 4 . . . 235 305 Shots 8 | . . . . . 5 3 Rammed 22 | . 3 . . . 10 9 Targets Rammed 27 | . 3 . . . 11 13 Kicked . | . . . . . . . Crushed 5 | . . . . . 1 4 Highest Temperature 290 | . 8 . . . 290 210 Average Temperature 55 | . 2 . . . 85 44 Received Heat Transfer 2421 | . 360 . . . 648 1413 Effects 4 | . . . . . 4 . Interference 4 | . . . . . 4 . Siege Activations . | . . . . . . . Robots Corrupted . | . . . . . . . Combat Hostiles . | . . . . . . . Parts Fried . | . . . . . . . Impact Corruptions . | . . . . . . . Robots Melted . | . . . . . . . Combat Hostiles . | . . . . . . . Parts Melted 1 | . . . . . 1 . Heat Transferred 148 | . . . . . 148 . Parts Sabotaged . | . . . . . . . Parts Stolen . | . . . . . . . Parts Stripped . | . . . . . . . Power Chain Reactions . | . . . . . . . Missiles Intercepted . | . . . . . . . Alert | -11 -10 -10 -10 -9 -8 -7 ------- Run | Jun Mat Min Exi Min Mat Fac Peak Influence 794 | . 193 70 . . 575 794 Initial 261 | . . . . . . 261 Average 267 | . 51 27 . . 326 360 Maximum Alert Level 3 | . . . . . 2 3 Low Security (%) 45 | 100 100 100 . 100 24 26 Level 1 24 | . . . . . 42 28 Level 2 27 | . . . . . 33 40 Level 3 2 | . . . . . . 4 Level 4 . | . . . . . . . Level 5 . | . . . . . . . High Security . | . . . . . . . Max Security . | . . . . . . . Squads Dispatched 30 | . 1 . . . 5 24 Investigation 1 | . . . . . . 1 Extermination 8 | . . . . . . 8 Reinforcement 14 | . 1 . . . 3 10 Assault 3 | . . . . . 1 2 Garrison 4 | . . . . . 1 3 Intercept . | . . . . . . . Searches Triggered . | . . . . . . . Construction Impeded 3 | . . . . . 1 2 Haulers Reinforced 1 | . . . . . . 1 Active Scanning Responses . | . . . . . . . Cargo Convoy Interrupts . | . . . . . . . Stealth | -11 -10 -10 -10 -9 -8 -7 --------- Run | Jun Mat Min Exi Min Mat Fac Distress Signals 5 | . . . . . 3 2 Communications Jammed . | . . . . . . . Distress Signals . | . . . . . . . Times Spotted 130 | . 23 3 . . 43 61 Peak Tracking Total 5 | . 4 2 . . 4 5 Tactical Retreats 6 | . . . . . 4 2 Traps | -11 -10 -10 -10 -9 -8 -7 ------- Run | Jun Mat Min Exi Min Mat Fac Traps Triggered 2 | . . . . . 2 . Indirectly . | . . . . . . . Trap Hack Attempts . | . . . . . . . Triggered . | . . . . . . . Disarmed . | . . . . . . . Reprogrammed . | . . . . . . . Reused . | . . . . . . . Traps Extracted . | . . . . . . . Installed . | . . . . . . . Triggered . | . . . . . . . Machines | -11 -10 -10 -10 -9 -8 -7 ---------- Run | Jun Mat Min Exi Min Mat Fac Machines Disabled 16 | . 1 . . . 9 6 Max in Single Turn 3 | . 1 . . . 2 3 Garrison Access 2 | . . . . . 1 1 Machines Repaired . | . . . . . . . Machines Sabotaged . | . . . . . . . Overloaded Fab Kills . | . . . . . . . Hacking | -11 -10 -10 -10 -9 -8 -7 --------- Run | Jun Mat Min Exi Min Mat Fac Machines Accessed 24 | . 5 . 1 . 5 13 Terminals 13 | . 4 . . . 3 6 Fabricators . | . . . . . . . Repair Stations 4 | . 1 . . . . 3 Recycling Units 1 | . . . . . . 1 Scanalyzers 1 | . . . . . 1 . Garrison Access 4 | . . . . . 1 3 Total Hacks 53 | . 10 . 1 . 13 29 Successful 28 | . 8 . 1 . 8 11 Failed 25 | . 2 . . . 5 18 Catastrophic 5 | . 1 . . . 1 3 Database Lockouts . | . . . . . . . Manual 1 | . . . 1 . . . Terminals 26 | . 6 . . . 8 12 Fabricators . | . . . . . . . Repair Stations 11 | . 4 . . . . 7 Recycling Units 2 | . . . . . . 2 Scanalyzers 4 | . . . . . 4 . Garrison Access 9 | . . . . . 1 8 Terminal Hacks 16 | . 4 . 1 . 5 6 Prototype ID Bank 2 | . 1 . . . 1 . Level Access Points 1 | . 1 . . . . . Emergency Access Points 1 | . . . . . 1 . Alert Level 1 | . . . . . 1 . Unreport Threat 1 | . . . . . . 1 Locate Traps 4 | . 2 . . . 1 1 Dispatch Records 1 | . . . . . . 1 Security Status 1 | . . . . . . 1 Reinforcement Status 1 | . . . . . . 1 Hauler Manifests 1 | . . . . . 1 . Zone Layout 1 | . . . . . . 1 EX-Prototype ID Bank 1 | . . . 1 . . . Fabricator Hacks . | . . . . . . . Repair Station Hacks 7 | . 4 . . . . 3 Scan Component 4 | . 2 . . . . 2 Repair 3 | . 2 . . . . 1 Recycling Unit Hacks 1 | . . . . . . 1 Retrieve Components 1 | . . . . . . 1 Scanalyzer 2 | . . . . . 2 . Insert Component 1 | . . . . . 1 . Analyze 1 | . . . . . 1 . Garrison Access Hacks 2 | . . . . . 1 1 Seal Access 2 | . . . . . 1 1 Unauthorized Hacks . | . . . . . . . Terminals . | . . . . . . . Fabricators . | . . . . . . . Repair Stations . | . . . . . . . Recycling Units . | . . . . . . . Scanalyzers . | . . . . . . . Garrison Access . | . . . . . . . Data Cores Recovered . | . . . . . . . Used . | . . . . . . . Hacking Detections 20 | . 5 . . . 3 12 Full Trace Events 3 | . 1 . . . 1 1 Feedback Events . | . . . . . . . Feedback Blocked . | . . . . . . . Robot Schematics Acquired . | . . . . . . . Robots Built . | . . . . . . . Authchips . | . . . . . . . Time . | . . . . . . . Total Robot Build Rating . | . . . . . . . Part Schematics Acquired . | . . . . . . . Parts Built . | . . . . . . . Authchips . | . . . . . . . Time . | . . . . . . . Total Part Build Rating . | . . . . . . . Parts Repaired 3 | . 2 . . . . 1 Time 96 | . 52 . . . . 44 Parts Recycled . | . . . . . . . Recycled Matter . | . . . . . . . Retrieved Matter . | . . . . . . . Retrieved Components 2 | . . . . . . 2 Parts Scanalyzed 1 | . . . . . 1 . Part Schematics Acquired . | . . . . . . . Parts Damaged . | . . . . . . . Bothacking | -11 -10 -10 -10 -9 -8 -7 ------------ Run | Jun Mat Min Exi Min Mat Fac Used RIF Installer . | . . . . . . . Robots Hacked . | . . . . . . . Non-combat . | . . . . . . . Combat . | . . . . . . . Robot Hacks Applied . | . . . . . . . Relay Couplers Released 7 | . . . . . . 7 Programmers 7 | . . . . . . 7 Fabnet Peak Effective % . | . . . . . . . Robots Rewired . | . . . . . . . Allies Hacked . | . . . . . . . Hacks Repelled . | . . . . . . . Allies | -11 -10 -10 -10 -9 -8 -7 -------- Run | Jun Mat Min Exi Min Mat Fac Total Allies 5 | . . 2 . 3 . . Largest Group 3 | . . 2 2 3 3 . Highest-Rated Group 49 | . . 49 49 40 40 . Highest-Rated Ally 31 | . . 31 31 16 16 . Total Orders . | . . . . . . . Ally Attacks 29 | . . . . . 29 . Total Damage 296 | . . . . . 296 . Kills 3 | . . . . . 3 . Allies Corrupted . | . . . . . . . Allies Melted . | . . . . . . . Intel | -11 -10 -10 -10 -9 -8 -7 ------- Run | Jun Mat Min Exi Min Mat Fac Robot Analysis Total . | . . . . . . . Derelict Logs Recovered 3 | . . 1 . 2 . . Drone Launches . | . . . . . . . Drone Recoveries . | . . . . . . . Exploration | -11 -10 -10 -10 -9 -8 -7 ------------- Run | Jun Mat Min Exi Min Mat Fac Turns Passed 11873 | 90 2028 751 407 206 2601 5790 Spaces Moved 5639 | 55 1038 449 254 127 1173 2543 Core 26 | 22 1 . . . . 3 Treads 5461 | 33 885 449 254 127 1173 2540 Legs . | . . . . . . . Wheels 152 | . 152 . . . . . Hover . | . . . . . . . Flight . | . . . . . . . Fastest Speed 50 | 50 100 160 160 160 152 157 Average Speed 171 | 144 157 160 160 160 188 172 Slowest Speed 550 | 200 500 160 160 160 250 550 Overloaded Moves . | . . . . . . . Propulsion Burnouts . | . . . . . . . Robots Hopped . | . . . . . . . Cave-ins Triggered 1 | . . . . . 1 . Exploration Rate (%) 56 | 4 100 88 62 35 56 49 Regions Visited 6 Branch Regions 3 Pre-discovered Areas 1 | . . 1 . . . . Known Exits Taken 1 | . . . . . 1 . Unknown Exits Taken 5 | 1 1 1 1 1 . . Scrap Searched 2 | . . 1 . 1 . . Spaces Dug 15 | . . . . . 10 5 Terrain Destroyed 260 | . . . . . 193 67 Melee . | . . . . . . . Projectile 37 | . . . . . 17 20 AOE 222 | . . . . . 176 46 Terrain Rammed . | . . . . . . . Walls Destroyed . | . . . . . . . Machines Disabled . | . . . . . . . Actions | -11 -10 -10 -10 -9 -8 -7 --------- Run | Jun Mat Min Exi Min Mat Fac Total 7160 | 63 1244 467 255 130 1404 3597 Wait 874 | . 81 5 . 1 58 729 Move 5633 | 54 1037 448 253 126 1172 2543 Hop . | . . . . . . . Pick Up 38 | 3 7 2 . . 11 15 Fast Attach 44 | 6 6 . 1 1 16 14 Attach 41 | . 2 1 . . 16 22 Detach 25 | . 6 . 1 1 8 9 Swap 24 | . 6 . . . 10 8 Drop 30 | . 2 3 . 1 11 13 Fire 424 | . 94 8 . . 91 231 Melee . | . . . . . . . Ram 5 | . 3 . . . . 2 Kick . | . . . . . . . Crush 22 | . . . . . 11 11 Escape Stasis . | . . . . . . . Rewire . | . . . . . . . Trap . | . . . . . . . Miscellaneous . | . . . . . . . Route ------- -11/Junkyard -10/Materials (discovered 5 exits: *Mat x3 / [*Min x2]) -10/Mines (discovered 3 exits: *Mat x2 / *Exi) -10/Exiles -9/Mines -8/Materials (discovered 4 exits: *Fac x2 / [*Sto x2]) -7/Factory (discovered 2 exits: [*Low x2]) History --------- Turn | Location | Event 30 | -11/Junkyard | Discovered new exit (range 15) 91 | -11/Junkyard | Entered Materials 304 | -10/Materials | Build established: Mutant 378 | -10/Materials | Identified exit to Materials 408 | -10/Materials | Discovered new exit (range 6) 712 | -10/Materials | Core integrity fell below 50% 751 | -10/Materials | Discovered new exit (range 9) 1539 | -10/Materials | Repaired Lgt. Treads 1566 | -10/Materials | Repaired Lgt. Treads 2119 | -10/Materials | Entered Mines 2256 | -10/Mines | Learned Materials interactive machine intel 2347 | -10/Mines | Discovered exit to Materials (range 9) 2391 | -10/Mines | Discovered exit to Materials (range 10) 2668 | -10/Mines | Found a hidden stash of uninstalled traps 2819 | -10/Mines | Learned location of Storage (-8) 2860 | -10/Mines | Deemed a non-threat by the Exiles lab entrance 2860 | -10/Mines | Discovered new exit (range 5) 2870 | -10/Mines | Entered Exiles 2870 | -10/Exiles | Accompanied by 2 allies 2900 | -10/Exiles | Led the pair of lost Derelicts to a safe place 2910 | -10/Exiles | Met 8R-AWN 2938 | -10/Exiles | Met EX-HEX 2979 | -10/Exiles | Met EX-BIN 3064 | -10/Exiles | Aligned with FarCom system 3066 | -10/Exiles | Given EX-Vault access code 3104 | -10/Exiles | Opened EX-Vault 3119 | -10/Exiles | Found Modified TNC 3154 | -10/Exiles | Warned to stay clear of 0b10 Research branches 3200 | -10/Exiles | Met EX-DEC 3255 | -10/Exiles | Discovered new exit (range 14) 3277 | -10/Exiles | Left Exiles lab with Modified TNC 3277 | -10/Exiles | Entered Mines 3330 | -9/Mines | Learned Materials non-interactive machine intel 3457 | -9/Mines | Discovered new exit (range 10) 3475 | -9/Mines | Assisted by bots powering up and referring to "LRC-V3" 3483 | -9/Mines | Entered Materials 3483 | -8/Materials | Accompanied by 3 allies 3483 | -8/Materials | Evolved 4 slots: Utility x4 3484 | -8/Materials | Identified exit to Factory 3485 | -8/Materials | Loaded intel: 53 non-interactive machine locations 3486 | -8/Materials | Loaded intel: 19 interactive machine locations 3870 | -8/Materials | Build established: Scavenger-Skirmisher 4043 | -8/Materials | Crushed by falling debris 4074 | -8/Materials | Lost 3 parts (1p2u) 4081 | -8/Materials | Garrison activated, responded to threat 4171 | -8/Materials | Lost 3 parts (1n1u1w) 5019 | -8/Materials | Core integrity fell below 50% 5092 | -8/Materials | Lost 4 parts (2n1u1w) 5355 | -8/Materials | Build established: Scavenger-Mutant 5365 | -8/Materials | Discovered new exit (range 12) 5483 | -8/Materials | First assault squad dispatched 5612 | -8/Materials | Discovered exit to Factory (range 18) 5775 | -8/Materials | Discovered new exit (range 13) 5789 | -8/Materials | Build established: Mutant 5936 | -8/Materials | Core integrity fell below 20% 6084 | -8/Materials | Entered Factory 6084 | -7/Factory | Evolved 2 slots: Propulsion x1, Utility x1 6236 | -7/Factory | Discovered new exit (range 8) 6446 | -7/Factory | Build established: Scavenger-Mutant 7275 | -7/Factory | Repaired Hrd. Heavy Armor Plating 8313 | -7/Factory | Discovered new exit (range 6) 8315 | -7/Factory | Build established: Mutant 8439 | -7/Factory | Garrison activated, responded to threat 8544 | -7/Factory | Lost 4 parts (1p1n1u1w) 10745 | -7/Factory | Lost 3 parts (2n1u) 11284 | -7/Factory | First assault squad dispatched 11781 | -7/Factory | Core integrity fell below 50% 11854 | -7/Factory | Core integrity fell below 20% 11874 | -7/Factory | Destroyed by G-50 Soldier with Heavy Laser Last Messages --------------- 11840_ Arm. Treads severed. 11842_ Arm. Treads destroyed. 11844_ Critical hit (Burn: +37). 11844_ L-41 Fighter destroyed. 11846_ R-06 Scavenger collects Arm. Treads. 11849_ Adv. Assault Cannon destroyed. 11853_ Acquired 3 matter. 11855_ Critical hit (Burn: +37). 11859_ Imp. Terrain Scanner destroyed. 11861_ K-01 Serf collects debris. 11862_ Acquired 3 matter. 11864_ %ZYQFL3Y2OWSW>KKCIM 11866_ K-01 Serf collects debris. 11867_ Slammed into G-47 Trooper. 11867_ Flak Gun broken. 11867_ Destabilizing: Short circuit. 11868_ Acquired 9 matter. 11871_ K-01 Serf collects debris. 11872_ Slammed into G-50 Soldier. 11873_ Acquired 14 matter. Map ----- +----------------------------------------------------+ | | | | | | | | | | | | | | | | | | | | | | | | | | | | | | | | | | | | | | | | | | | | | ?????????#?#####?##########################?##?### | | ??????????####?######## ###?######### | | ?????????????#?########%ig ##??######### | | ??????????####?# +k @""" """ ##### " ! | | ?????????##??### ###### g""" """ ##### # | | ????????###?###??##?### """%""" ##?## ### | | ???????????##### ?#?####;+###+########## ### | | ?????????#?##?## ?#??####% % ######## #?# | | ???????#?####?####???##?# %% # ! ### ### | | ????????# ??#?###?#% # ### | | ????????? ?? ? ? #?##### "! ### | | ?????????? ??? ####### # + ^ | | ????????? ? + # # | | ??????????????""" ######### ###### ^ """ | | ????????????"?""? #??###### """ | | ????????????" ?"" #?#??#?## "% """ ### | | ????????????? ? ? ##??#?#?# # | | ??????????????#??############+### #### # | | ????????????#?#??######?# ? + ##?# # ? | | ????????????#?????##?#### # ##?# + | | ????????????????#????###?? ? ?# #### ####? | | ???????????????? ??###?#??????? # #?## ####? | | ???????????????????#????? ? ???# #??#+##+##?#?? | | ???????????????????????????###?## # ????? ????? | | ????????????????????#?#?????????# #?????? ?#???? | | ????????????????????????? ????? # #? ??????#???# | | ??????????????????????#??? ???"?# #? ?????????## | | ??????????????????????????????? # #??????????#?# | +----------------------------------------------------+ Best States ------------- Heat Dissipation 48 Energy Generation 16 Energy Capacity 290 Matter Stores 300 Matter Capacity 300 Sight Range 20 Robot Scan Range 15 Terrain Scan Range 16 Terrain Scan Density 110 Armor Coverage 600 Core Shielding 20 Propulsion Shielding 66 Utility Shielding 66 Weapon Shielding 66 Evasion (%) 40 Targeting Accuracy 21 Target Analysis 6 Core Analysis 6 Recoil Reduction 3 Salvage Targeting 1 Item Schematics ----------------- None Robot Schematics ------------------ None Fabricated ------------ Nothing Alien Tech Used ----------------- None Achievements -------------- None Challenges ------------ None Game ------ Seed MediumDisposableEdition Manual? 0 Play Time 00:58:20 Cumulative 22.5 hours Start 2023.11.25 @ 08:13:18 End 2023.11.25 @ 09:08:36 Sessions 1 Manual Loads 0 Difficulty Rogue Special Mode None Game No. 46 Rogue 46 Adventurer 0 Explorer 0 Win Type - Total 0 Types 0/0/0/0/0/0/0/0/0 Lore% 23 Gallery% 25 Achievement% 22 Wizard Run 0 Options --------- ASCII 0 Keyboard 1 Movement Numpad Keybinds 0 Fullscreen 2 Font 18/SmallcapsGlow Map View 76x50 Tactical HUD 1 Map Filters NONE Filters NONE Steam 1 RUN: 7cc2197b-873d-4a55-84c1-d3cb95085f0a